[Event "Titled Tuesday Blitz February 07 Late 2023"]
[White "Lucassen, Mickey"]
[Black "Papasimakopoulos, Alexandros"]
[WhiteFideId "12919110"]
[BlackFideId "4244125"]
[WhiteElo "2023"]
[BlackElo "2401"]
[Result "0-1"]
[Round "02"]
[TimeControl "180+2"]
[Date "2023.02.07"]
[WhiteClock "0:00:07"]
[BlackClock "0:01:56"]

1. d4 {[%clk 0:03:00]}  e6 {[%clk 0:03:00]} 2. Nf3 {[%clk 0:02:59]}  Nf6 {[%clk 0:03:00]} 3. c4 {[%clk 0:02:57]}  Bb4+ {[%clk 0:02:59]} 4. Bd2 {[%clk 0:02:57]}  Qe7 {[%clk 0:02:59]} 5. a3 {[%clk 0:02:56]}  Bxd2+ {[%clk 0:02:59]} 6. Qxd2 {[%clk 0:02:55]}  O-O {[%clk 0:03:00]} 7. Nc3 {[%clk 0:02:55]}  d5 {[%clk 0:03:00]} 8. e3 {[%clk 0:02:55]}  Rd8 {[%clk 0:02:59]} 9. cxd5 {[%clk 0:02:54]}  exd5 {[%clk 0:02:59]} 10. Bd3 {[%clk 0:02:54]}  c6 {[%clk 0:03:00]} 11. O-O {[%clk 0:02:55]}  Nbd7 {[%clk 0:03:00]} 12. Rac1 {[%clk 0:02:51]}  Re8 {[%clk 0:02:59]} 13. Rfd1 {[%clk 0:02:46]}  Nf8 {[%clk 0:02:59]} 14. Ne5 {[%clk 0:02:46]}  Ng6 {[%clk 0:03:00]} 15. f4 {[%clk 0:02:45]}  Nd7 {[%clk 0:02:57]} 16. Re1 {[%clk 0:02:26]}  Ndf8 {[%clk 0:02:56]} 17. Qf2 {[%clk 0:02:17]}  f6 {[%clk 0:02:56]} 18. Nxg6 {[%clk 0:02:17]}  hxg6 {[%clk 0:02:57]} 19. Qh4 {[%clk 0:02:10]}  Bf5 {[%clk 0:02:57]} 20. Bxf5 {[%clk 0:02:10]}  gxf5 {[%clk 0:02:58]} 21. Qh3 {[%clk 0:02:02]}  g6 {[%clk 0:02:57]} 22. Qf3 {[%clk 0:02:02]}  Qd6 {[%clk 0:02:52]} 23. Na4 {[%clk 0:02:00]}  Nd7 {[%clk 0:02:53]} 24. Nc5 {[%clk 0:01:59]}  Nxc5 {[%clk 0:02:53]} 25. Rxc5 {[%clk 0:01:59]}  Re4 {[%clk 0:02:53]} 26. g4 {[%clk 0:01:52]}  fxg4 {[%clk 0:02:50]} 27. Qxg4 {[%clk 0:01:52]}  f5 {[%clk 0:02:51]} 28. Qg3 {[%clk 0:01:51]}  Rae8 {[%clk 0:02:50]} 29. Kf2 {[%clk 0:01:51]}  Kg7 {[%clk 0:02:47]} 30. h4 {[%clk 0:01:50]}  Qe6 {[%clk 0:02:44]} 31. Rcc1 {[%clk 0:01:33]}  Rh8 {[%clk 0:02:44]} 32. Re2 {[%clk 0:01:29]}  Qf6 {[%clk 0:02:41]} 33. Rh1 {[%clk 0:01:27]}  Rh5 {[%clk 0:02:42]} 34. Kf3 {[%clk 0:01:23]}  Re8 {[%clk 0:02:41]} 35. Reh2 {[%clk 0:01:15]}  Qe7 {[%clk 0:02:40]} 36. Ke2 {[%clk 0:01:14]}  Qe4 {[%clk 0:02:39]} 37. Kd2 {[%clk 0:01:14]}  c5 {[%clk 0:02:38]} 38. dxc5 {[%clk 0:01:10]}  d4 {[%clk 0:02:38]} 39. exd4 {[%clk 0:01:09]}  Qxd4+ {[%clk 0:02:39]} 40. Kc1 {[%clk 0:01:05]}  Qxc5+ {[%clk 0:02:39]} 41. Kb1 {[%clk 0:01:06]}  Qe3 {[%clk 0:02:37]} 42. Qxe3 {[%clk 0:00:58]}  Rxe3 {[%clk 0:02:38]} 43. Rd1 {[%clk 0:00:58]}  Re7 {[%clk 0:02:38]} 44. Rd6 {[%clk 0:00:56]}  Kh7 {[%clk 0:02:34]} 45. Rg2 {[%clk 0:00:51]}  Rg7 {[%clk 0:02:34]} 46. Rh2 {[%clk 0:00:46]}  b6 {[%clk 0:02:35]} 47. b4 {[%clk 0:00:45]}  Re7 {[%clk 0:02:35]} 48. Kb2 {[%clk 0:00:45]}  Kg7 {[%clk 0:02:31]} 49. Rg2 {[%clk 0:00:43]}  Rh6 {[%clk 0:02:31]} 50. h5 {[%clk 0:00:41]}  Re4 {[%clk 0:02:27]} 51. Rgxg6+ {[%clk 0:00:38]}  Rxg6 {[%clk 0:02:27]} 52. Rxg6+ {[%clk 0:00:33]}  Kh7 {[%clk 0:02:27]} 53. Rf6 {[%clk 0:00:33]}  Rxf4 {[%clk 0:02:27]} 54. Rf7+ {[%clk 0:00:34]}  Kh6 {[%clk 0:02:28]} 55. Rxa7 {[%clk 0:00:34]}  Re4 {[%clk 0:02:25]} 56. Rb7 {[%clk 0:00:32]}  Re6 {[%clk 0:02:24]} 57. Rf7 {[%clk 0:00:28]}  Kg5 {[%clk 0:02:21]} 58. h6 {[%clk 0:00:28]}  Rxh6 {[%clk 0:02:21]} 59. a4 {[%clk 0:00:28]}  f4 {[%clk 0:02:20]} 60. Kc3 {[%clk 0:00:27]}  Rc6+ {[%clk 0:02:09]} 61. Kd4 {[%clk 0:00:25]}  Kg4 {[%clk 0:02:08]} 62. Kd5 {[%clk 0:00:20]}  Rc1 {[%clk 0:02:06]} 63. a5 {[%clk 0:00:21]}  bxa5 {[%clk 0:02:06]} 64. bxa5 {[%clk 0:00:21]}  Ra1 {[%clk 0:02:06]} 65. Rg7+ {[%clk 0:00:09]}  Kf3 {[%clk 0:02:03]} 66. Ra7 {[%clk 0:00:09]}  Ke2 {[%clk 0:01:57]} 67. Kc5 {[%clk 0:00:09]}  f3 {[%clk 0:01:57]} 68. Kb6 {[%clk 0:00:09]}  Rb1+ {[%clk 0:01:57]} 69. Ka6 {[%clk 0:00:09]}  f2 {[%clk 0:01:54]} 70. Rf7 {[%clk 0:00:10]}  f1=Q {[%clk 0:01:54]} 71. Rxf1 {[%clk 0:00:10]}  Rxf1 {[%clk 0:01:54]} 72. Ka7 {[%clk 0:00:10]}  Kd3 {[%clk 0:01:54]} 73. a6 {[%clk 0:00:10]}  Kc4 {[%clk 0:01:54]} 74. Kb8 {[%clk 0:00:06]}  Rf8+ {[%clk 0:01:54]} 75. Kb7 {[%clk 0:00:06]}  Rf7+ {[%clk 0:01:55]} 76. Kb6 {[%clk 0:00:04]}  Rf6+ {[%clk 0:01:54]} 77. Kb7 {[%clk 0:00:05]}  Kb5 {[%clk 0:01:54]} 78. a7 {[%clk 0:00:05]}  Rf7+ {[%clk 0:01:55]} 79. Kb8 {[%clk 0:00:06]}  Kb6 {[%clk 0:01:56]} 80. a8=Q {[%clk 0:00:07]}  Rf8# {[%clk 0:01:56]} 0-1


[Site "https://www.chess.com"]

[Event "Titled Tuesday Blitz February 07 Late 2023"]
[White "Rostomyan, Mikayel"]
[Black "Jorajuria Mendoza, Algol"]
[WhiteFideId "13313754"]
[BlackFideId "5128897"]
[WhiteElo "2222"]
[BlackElo "2069"]
[Result "0-1"]
[Round "02"]
[TimeControl "180+2"]
[Date "2023.02.07"]
[WhiteClock "0:00:23"]
[BlackClock "0:00:42"]

1. d4 {[%clk 0:03:00]}  d5 {[%clk 0:02:59]} 2. Nf3 {[%clk 0:03:00]}  Nf6 {[%clk 0:02:59]} 3. b3 {[%clk 0:02:58]}  c5 {[%clk 0:02:57]} 4. Bb2 {[%clk 0:02:58]}  e6 {[%clk 0:02:56]} 5. e3 {[%clk 0:02:58]}  Nc6 {[%clk 0:02:54]} 6. Be2 {[%clk 0:02:57]}  b6 {[%clk 0:02:51]} 7. O-O {[%clk 0:02:56]}  Bb7 {[%clk 0:02:51]} 8. c4 {[%clk 0:02:56]}  dxc4 {[%clk 0:02:45]} 9. bxc4 {[%clk 0:02:56]}  cxd4 {[%clk 0:02:46]} 10. exd4 {[%clk 0:02:56]}  Be7 {[%clk 0:02:43]} 11. Nbd2 {[%clk 0:02:52]}  O-O {[%clk 0:02:43]} 12. Nb3 {[%clk 0:02:51]}  Rc8 {[%clk 0:02:42]} 13. Rc1 {[%clk 0:02:50]}  Nh5 {[%clk 0:02:29]} 14. g3 {[%clk 0:02:42]}  Nf6 {[%clk 0:02:27]} 15. a3 {[%clk 0:02:31]}  Qd6 {[%clk 0:02:06]} 16. c5 {[%clk 0:02:24]}  Qd7 {[%clk 0:01:58]} 17. Bb5 {[%clk 0:02:18]}  a6 {[%clk 0:01:53]} 18. Ne5 {[%clk 0:02:14]}  Qd5 {[%clk 0:01:49]} 19. Bxc6 {[%clk 0:02:05]}  Rxc6 {[%clk 0:01:44]} 20. Nxc6 {[%clk 0:01:53]}  Bxc6 {[%clk 0:01:42]} 21. f3 {[%clk 0:01:54]}  Ng4 {[%clk 0:01:30]} 22. Qd3 {[%clk 0:01:36]}  bxc5 {[%clk 0:01:10]} 23. Nxc5 {[%clk 0:01:29]}  Ne5 {[%clk 0:01:05]} 24. Qe4 {[%clk 0:01:01]}  Bxc5 {[%clk 0:00:54]} 25. Qxd5 {[%clk 0:00:54]}  Bxd5 {[%clk 0:00:53]} 26. dxc5 {[%clk 0:00:49]}  Nxf3+ {[%clk 0:00:53]} 27. Kf2 {[%clk 0:00:48]}  Rb8 {[%clk 0:00:51]} 28. Rc2 {[%clk 0:00:43]}  Nxh2 {[%clk 0:00:50]} 29. Be5 {[%clk 0:00:30]}  Ng4+ {[%clk 0:00:49]} 30. Ke2 {[%clk 0:00:27]}  Nxe5 {[%clk 0:00:49]} 31. Rf4 {[%clk 0:00:25]}  Nc6 {[%clk 0:00:45]} 32. Ra4 {[%clk 0:00:23]}  Bb3 {[%clk 0:00:42]} 0-1


[Site "https://www.chess.com"]

[Event "Titled Tuesday Blitz February 07 Late 2023"]
[White "Gonzalez, Francisco Silva"]
[Black "Vlassov, Nikolai"]
[WhiteFideId "1512285"]
[BlackFideId "4103360"]
[WhiteElo "2021"]
[BlackElo "2283"]
[Result "0-1"]
[Round "02"]
[TimeControl "180+2"]
[Date "2023.02.07"]
[WhiteClock "0:01:05"]
[BlackClock "0:01:34"]

1. d4 {[%clk 0:02:21]}  Nf6 {[%clk 0:02:59]} 2. c3 {[%clk 0:02:21]}  Nc6 {[%clk 0:02:48]} 3. Bf4 {[%clk 0:02:19]}  e5 {[%clk 0:02:46]} 4. Bxe5 {[%clk 0:02:17]}  Nxe5 {[%clk 0:02:45]} 5. dxe5 {[%clk 0:02:17]}  Ng4 {[%clk 0:02:45]} 6. f4 {[%clk 0:02:15]}  d6 {[%clk 0:02:37]} 7. exd6 {[%clk 0:02:11]}  Bxd6 {[%clk 0:02:36]} 8. g3 {[%clk 0:02:07]}  h5 {[%clk 0:02:33]} 9. Nf3 {[%clk 0:02:06]}  h4 {[%clk 0:02:33]} 10. Rg1 {[%clk 0:01:48]}  hxg3 {[%clk 0:02:29]} 11. hxg3 {[%clk 0:01:48]}  Qe7 {[%clk 0:02:19]} 12. Qd3 {[%clk 0:01:44]}  Ne3 {[%clk 0:02:09]} 13. Qb5+ {[%clk 0:01:38]}  c6 {[%clk 0:02:07]} 14. Qa4 {[%clk 0:01:25]}  b5 {[%clk 0:02:03]} 15. Qd1 {[%clk 0:01:26]}  Nxd1 {[%clk 0:02:02]} 16. Kxd1 {[%clk 0:01:27]}  Bf5 {[%clk 0:01:57]} 17. Nbd2 {[%clk 0:01:26]}  O-O-O {[%clk 0:01:57]} 18. Nd4 {[%clk 0:01:24]}  Bd7 {[%clk 0:01:54]} 19. Bg2 {[%clk 0:01:22]}  c5 {[%clk 0:01:53]} 20. Nc6 {[%clk 0:01:21]}  Bxc6 {[%clk 0:01:52]} 21. Bxc6 {[%clk 0:01:20]}  Qe3 {[%clk 0:01:45]} 22. Nc4 {[%clk 0:01:10]}  Qxg1+ {[%clk 0:01:38]} 23. Kc2 {[%clk 0:01:10]}  Qxa1 {[%clk 0:01:38]} 24. Bxb5 {[%clk 0:01:08]}  Qxa2 {[%clk 0:01:35]} 25. Nb6+ {[%clk 0:01:05]}  axb6 {[%clk 0:01:35]} 26. Bc4 {[%clk 0:01:05]}  Qxc4 {[%clk 0:01:34]} 0-1


[Site "https://www.chess.com"]

[Event "Titled Tuesday Blitz February 07 Late 2023"]
[White "Jarocka, Liwia"]
[Black "Janaszak, Dawid"]
[WhiteFideId "21807558"]
[BlackFideId "1119206"]
[WhiteElo "2225"]
[BlackElo "2316"]
[Result "0-1"]
[Round "02"]
[TimeControl "180+2"]
[Date "2023.02.07"]
[WhiteClock "0:01:37"]
[BlackClock "0:02:03"]

1. d4 {[%clk 0:03:00]}  d5 {[%clk 0:02:58]} 2. c4 {[%clk 0:03:01]}  e6 {[%clk 0:02:59]} 3. Nf3 {[%clk 0:03:01]}  c5 {[%clk 0:02:59]} 4. e3 {[%clk 0:02:59]}  Nf6 {[%clk 0:02:59]} 5. dxc5 {[%clk 0:02:58]}  Bxc5 {[%clk 0:02:58]} 6. Nc3 {[%clk 0:02:58]}  Nc6 {[%clk 0:02:58]} 7. cxd5 {[%clk 0:02:58]}  exd5 {[%clk 0:02:59]} 8. Bb5 {[%clk 0:02:58]}  O-O {[%clk 0:02:59]} 9. O-O {[%clk 0:02:59]}  Bg4 {[%clk 0:02:58]} 10. Bxc6 {[%clk 0:02:56]}  bxc6 {[%clk 0:02:58]} 11. b3 {[%clk 0:02:57]}  Qe7 {[%clk 0:02:52]} 12. h3 {[%clk 0:02:55]}  Bh5 {[%clk 0:02:52]} 13. Bb2 {[%clk 0:02:55]}  Ne4 {[%clk 0:02:52]} 14. Rc1 {[%clk 0:02:49]}  f5 {[%clk 0:02:51]} 15. Qe2 {[%clk 0:02:46]}  Bd6 {[%clk 0:02:46]} 16. Na4 {[%clk 0:02:41]}  Rac8 {[%clk 0:02:42]} 17. Qa6 {[%clk 0:02:01]}  Bxf3 {[%clk 0:02:27]} 18. gxf3 {[%clk 0:02:02]}  Qg5+ {[%clk 0:02:27]} 19. Kh1 {[%clk 0:01:48]}  Qh5 {[%clk 0:02:22]} 20. Kg2 {[%clk 0:01:45]}  Ng5 {[%clk 0:02:09]} 21. Rh1 {[%clk 0:01:44]}  Qxf3+ {[%clk 0:02:07]} 22. Kg1 {[%clk 0:01:44]}  Nxh3+ {[%clk 0:02:03]} 23. Rxh3 {[%clk 0:01:39]}  Qxh3 {[%clk 0:02:04]} 24. Qb7 {[%clk 0:01:36]}  Bh2+ {[%clk 0:02:04]} 25. Kh1 {[%clk 0:01:37]}  Bg3+ {[%clk 0:02:03]} 0-1


[Site "https://www.chess.com"]

[Event "Titled Tuesday Blitz February 07 Late 2023"]
[White "Carrasco Miranda, Andres"]
[Black "Toncheva, Nadya"]
[WhiteFideId "3405990"]
[BlackFideId "2924056"]
[WhiteElo "2240"]
[BlackElo "2295"]
[Result "1-0"]
[Round "02"]
[TimeControl "180+2"]
[Date "2023.02.07"]
[WhiteClock "0:00:28"]
[BlackClock "0:00:08"]

1. d4 {[%clk 0:03:00]}  d5 {[%clk 0:02:59]} 2. c4 {[%clk 0:03:00]}  c6 {[%clk 0:03:00]} 3. Nf3 {[%clk 0:03:00]}  Nf6 {[%clk 0:03:00]} 4. e3 {[%clk 0:03:00]}  e6 {[%clk 0:02:55]} 5. b3 {[%clk 0:02:59]}  Nbd7 {[%clk 0:02:54]} 6. Bd3 {[%clk 0:02:58]}  Bd6 {[%clk 0:02:51]} 7. Bb2 {[%clk 0:02:58]}  O-O {[%clk 0:02:51]} 8. Ne5 {[%clk 0:02:57]}  dxc4 {[%clk 0:02:45]} 9. Nxc4 {[%clk 0:02:55]}  Bb4+ {[%clk 0:02:42]} 10. Nbd2 {[%clk 0:02:55]}  c5 {[%clk 0:02:41]} 11. O-O {[%clk 0:02:54]}  Qe7 {[%clk 0:02:36]} 12. a3 {[%clk 0:02:54]}  Bxd2 {[%clk 0:02:36]} 13. Qxd2 {[%clk 0:02:53]}  b6 {[%clk 0:02:32]} 14. Rfd1 {[%clk 0:02:36]}  Bb7 {[%clk 0:02:32]} 15. Bf1 {[%clk 0:02:34]}  Rfd8 {[%clk 0:02:29]} 16. Qe2 {[%clk 0:02:31]}  Rac8 {[%clk 0:02:25]} 17. Rac1 {[%clk 0:02:29]}  cxd4 {[%clk 0:02:20]} 18. Rxd4 {[%clk 0:02:23]}  Nc5 {[%clk 0:02:08]} 19. Rxd8+ {[%clk 0:02:19]}  Rxd8 {[%clk 0:02:08]} 20. Qc2 {[%clk 0:02:15]}  Be4 {[%clk 0:02:05]} 21. Qc3 {[%clk 0:02:14]}  Qd7 {[%clk 0:01:51]} 22. f3 {[%clk 0:02:01]}  Bb7 {[%clk 0:01:42]} 23. Be2 {[%clk 0:01:44]}  Qb5 {[%clk 0:01:22]} 24. Rd1 {[%clk 0:00:52]}  Rxd1+ {[%clk 0:00:59]} 25. Bxd1 {[%clk 0:00:53]}  Qd7 {[%clk 0:00:58]} 26. Qd4 {[%clk 0:00:50]}  Qxd4 {[%clk 0:00:50]} 27. Bxd4 {[%clk 0:00:51]}  Nfd7 {[%clk 0:00:49]} 28. b4 {[%clk 0:00:48]}  Na6 {[%clk 0:00:45]} 29. Ba4 {[%clk 0:00:48]}  Nf8 {[%clk 0:00:40]} 30. Nd6 {[%clk 0:00:48]}  Bd5 {[%clk 0:00:30]} 31. e4 {[%clk 0:00:45]}  Ba2 {[%clk 0:00:27]} 32. Nc8 {[%clk 0:00:45]}  Nc7 {[%clk 0:00:22]} 33. Nxa7 {[%clk 0:00:45]}  f6 {[%clk 0:00:13]} 34. Bxb6 {[%clk 0:00:44]}  Na8 {[%clk 0:00:12]} 35. Bd8 {[%clk 0:00:43]}  e5 {[%clk 0:00:10]} 36. b5 {[%clk 0:00:41]}  Ne6 {[%clk 0:00:10]} 37. Ba5 {[%clk 0:00:39]}  Nd4 {[%clk 0:00:06]} 38. b6 {[%clk 0:00:37]}  Nxb6 {[%clk 0:00:07]} 39. Bxb6 {[%clk 0:00:37]}  Ne2+ {[%clk 0:00:07]} 40. Kf2 {[%clk 0:00:37]}  Nc3 {[%clk 0:00:07]} 41. Bc6 {[%clk 0:00:35]}  Bb3 {[%clk 0:00:06]} 42. Nb5 {[%clk 0:00:33]}  Nd1+ {[%clk 0:00:06]} 43. Ke1 {[%clk 0:00:32]}  Nb2 {[%clk 0:00:04]} 44. Nc3 {[%clk 0:00:28]}  Nc4 {[%clk 0:00:03]} 45. Bd5+ {[%clk 0:00:28]}  Kf8 {[%clk 0:00:03]} 46. Bxc4 {[%clk 0:00:28]}  Bxc4 {[%clk 0:00:03]} 47. a4 {[%clk 0:00:28]}  Ke7 {[%clk 0:00:02]} 48. a5 {[%clk 0:00:29]}  Kd6 {[%clk 0:00:02]} 49. Nd5 {[%clk 0:00:28]}  Bxd5 {[%clk 0:00:02]} 50. exd5 {[%clk 0:00:29]}  Kxd5 {[%clk 0:00:03]} 51. a6 {[%clk 0:00:29]}  Kc6 {[%clk 0:00:04]} 52. Bc5 {[%clk 0:00:26]}  Kc7 {[%clk 0:00:04]} 53. Bf8 {[%clk 0:00:26]}  g6 {[%clk 0:00:04]} 54. Bg7 {[%clk 0:00:26]}  f5 {[%clk 0:00:05]} 55. Bxe5+ {[%clk 0:00:27]}  Kb6 {[%clk 0:00:05]} 56. Kf2 {[%clk 0:00:26]}  Kxa6 {[%clk 0:00:06]} 57. Kg3 {[%clk 0:00:27]}  Kb7 {[%clk 0:00:06]} 58. Kh4 {[%clk 0:00:28]}  h6 {[%clk 0:00:06]} 59. Bg7 {[%clk 0:00:28]}  Kc7 {[%clk 0:00:07]} 60. Bxh6 {[%clk 0:00:28]}  Kd6 {[%clk 0:00:08]} 61. Kg5 {[%clk 0:00:28]}  Ke5 {[%clk 0:00:08]} 1-0


[Site "https://www.chess.com"]

[Event "Titled Tuesday Blitz February 07 Late 2023"]
[White "Krishnan, Varun"]
[Black "Fathy, Elameir"]
[WhiteFideId "5054508"]
[BlackFideId "10600396"]
[WhiteElo "2341"]
[BlackElo "2300"]
[Result "0-1"]
[Round "02"]
[TimeControl "180+2"]
[Date "2023.02.07"]
[WhiteClock "0:00:10"]
[BlackClock "0:00:18"]

1. d4 {[%clk 0:03:00]}  d5 {[%clk 0:03:00]} 2. c4 {[%clk 0:03:00]}  e6 {[%clk 0:03:00]} 3. Nf3 {[%clk 0:02:56]}  c6 {[%clk 0:02:59]} 4. Nbd2 {[%clk 0:02:53]}  Nf6 {[%clk 0:02:51]} 5. g3 {[%clk 0:02:52]}  c5 {[%clk 0:02:36]} 6. cxd5 {[%clk 0:02:46]}  exd5 {[%clk 0:02:29]} 7. Bg2 {[%clk 0:02:44]}  Nc6 {[%clk 0:02:30]} 8. dxc5 {[%clk 0:02:42]}  Bxc5 {[%clk 0:02:31]} 9. O-O {[%clk 0:02:41]}  O-O {[%clk 0:02:30]} 10. Nb3 {[%clk 0:02:35]}  Bb6 {[%clk 0:02:30]} 11. Bg5 {[%clk 0:02:29]}  h6 {[%clk 0:02:30]} 12. Bxf6 {[%clk 0:02:24]}  Qxf6 {[%clk 0:02:31]} 13. Qd2 {[%clk 0:02:19]}  a5 {[%clk 0:02:14]} 14. Rfd1 {[%clk 0:02:08]}  a4 {[%clk 0:02:00]} 15. Nbd4 {[%clk 0:02:05]}  Bg4 {[%clk 0:02:01]} 16. Rac1 {[%clk 0:01:46]}  a3 {[%clk 0:01:47]} 17. b4 {[%clk 0:01:43]}  Rfe8 {[%clk 0:01:33]} 18. h3 {[%clk 0:01:11]}  Nxd4 {[%clk 0:01:14]} 19. Nxd4 {[%clk 0:01:04]}  Bxe2 {[%clk 0:01:06]} 20. Nxe2 {[%clk 0:01:01]}  Qxf2+ {[%clk 0:01:05]} 21. Kh2 {[%clk 0:00:56]}  Rxe2 {[%clk 0:01:06]} 22. Qxd5 {[%clk 0:00:56]}  Rxa2 {[%clk 0:00:48]} 23. Rf1 {[%clk 0:00:52]}  Qxg2+ {[%clk 0:00:36]} 24. Qxg2 {[%clk 0:00:50]}  Rxg2+ {[%clk 0:00:37]} 25. Kxg2 {[%clk 0:00:50]}  a2 {[%clk 0:00:38]} 26. Rfd1 {[%clk 0:00:41]}  Bd8 {[%clk 0:00:25]} 27. Ra1 {[%clk 0:00:24]}  Bf6 {[%clk 0:00:24]} 28. Kf3 {[%clk 0:00:24]}  Ra3+ {[%clk 0:00:23]} 29. Kf2 {[%clk 0:00:24]}  g6 {[%clk 0:00:20]} 30. b5 {[%clk 0:00:24]}  h5 {[%clk 0:00:20]} 31. h4 {[%clk 0:00:23]}  Be5 {[%clk 0:00:20]} 32. Rg1 {[%clk 0:00:20]}  Kg7 {[%clk 0:00:16]} 33. Ke2 {[%clk 0:00:10]}  Bxa1 {[%clk 0:00:16]} 34. Rxa1 {[%clk 0:00:10]}  Rxg3 {[%clk 0:00:17]} 35. Rxa2 {[%clk 0:00:10]}  Rg2+ {[%clk 0:00:18]} 0-1


[Site "https://www.chess.com"]

[Event "Titled Tuesday Blitz February 07 Late 2023"]
[White "Rose, Felix"]
[Black "Brilej, Jaka"]
[WhiteFideId "5105722"]
[BlackFideId "14618818"]
[WhiteElo "2091"]
[BlackElo "2321"]
[Result "0-1"]
[Round "02"]
[TimeControl "180+2"]
[Date "2023.02.07"]
[WhiteClock "0:00:03"]
[BlackClock "0:00:18"]

1. e4 {[%clk 0:03:00]}  d6 {[%clk 0:02:58]} 2. d4 {[%clk 0:02:59]}  Nf6 {[%clk 0:02:57]} 3. Nc3 {[%clk 0:02:59]}  g6 {[%clk 0:02:57]} 4. Nf3 {[%clk 0:02:59]}  Bg7 {[%clk 0:02:57]} 5. h3 {[%clk 0:02:59]}  c6 {[%clk 0:02:55]} 6. a4 {[%clk 0:02:58]}  Na6 {[%clk 0:02:51]} 7. Be3 {[%clk 0:02:51]}  Nb4 {[%clk 0:02:51]} 8. Be2 {[%clk 0:02:48]}  O-O {[%clk 0:02:50]} 9. Qd2 {[%clk 0:02:47]}  a5 {[%clk 0:02:49]} 10. O-O {[%clk 0:02:45]}  Qc7 {[%clk 0:02:48]} 11. Rfe1 {[%clk 0:02:42]}  e5 {[%clk 0:02:47]} 12. dxe5 {[%clk 0:02:43]}  dxe5 {[%clk 0:02:48]} 13. Bc4 {[%clk 0:02:41]}  Bd7 {[%clk 0:02:43]} 14. Bc5 {[%clk 0:02:30]}  Rfd8 {[%clk 0:02:29]} 15. Qe2 {[%clk 0:02:19]}  Be8 {[%clk 0:02:23]} 16. Bb3 {[%clk 0:02:07]}  Nd7 {[%clk 0:02:22]} 17. Be3 {[%clk 0:02:01]}  Bf8 {[%clk 0:02:21]} 18. Nd1 {[%clk 0:01:51]}  Nc5 {[%clk 0:02:20]} 19. Bxc5 {[%clk 0:01:29]}  Bxc5 {[%clk 0:02:21]} 20. c3 {[%clk 0:01:30]}  Nd3 {[%clk 0:02:19]} 21. Rf1 {[%clk 0:01:30]}  Be7 {[%clk 0:02:01]} 22. g3 {[%clk 0:01:22]}  Kg7 {[%clk 0:02:00]} 23. Ne3 {[%clk 0:01:08]}  Nc5 {[%clk 0:01:56]} 24. Bc2 {[%clk 0:01:07]}  Bd7 {[%clk 0:01:55]} 25. Nc4 {[%clk 0:01:05]}  Bxh3 {[%clk 0:01:52]} 26. Ncxe5 {[%clk 0:00:42]}  Bxf1 {[%clk 0:01:51]} 27. Rxf1 {[%clk 0:00:39]}  Ne6 {[%clk 0:01:33]} 28. Bb3 {[%clk 0:00:33]}  Bd6 {[%clk 0:01:19]} 29. Nxf7 {[%clk 0:00:28]}  Bxg3 {[%clk 0:00:59]} 30. Bxe6 {[%clk 0:00:23]}  Re8 {[%clk 0:00:56]} 31. Bb3 {[%clk 0:00:19]}  Bf4 {[%clk 0:00:55]} 32. N7g5 {[%clk 0:00:14]}  Qc8 {[%clk 0:00:40]} 33. Qc4 {[%clk 0:00:03]}  Qg4+ {[%clk 0:00:38]} 34. Kh1 {[%clk 0:00:03]}  Bxg5 {[%clk 0:00:24]} 35. Qf7+ {[%clk 0:00:03]}  Kh6 {[%clk 0:00:24]} 36. Nxg5 {[%clk 0:00:03]}  Qh4+ {[%clk 0:00:24]} 37. Kg2 {[%clk 0:00:03]}  Qxg5+ {[%clk 0:00:24]} 38. Kf3 {[%clk 0:00:04]}  Rf8 {[%clk 0:00:23]} 39. Rh1+ {[%clk 0:00:04]}  Qh5+ {[%clk 0:00:21]} 40. Rxh5+ {[%clk 0:00:04]}  Kxh5 {[%clk 0:00:22]} 41. Qxf8 {[%clk 0:00:04]}  Rxf8+ {[%clk 0:00:21]} 42. Ke3 {[%clk 0:00:05]}  Kg5 {[%clk 0:00:21]} 43. e5 {[%clk 0:00:05]}  h5 {[%clk 0:00:21]} 44. e6 {[%clk 0:00:05]}  h4 {[%clk 0:00:20]} 45. f4+ {[%clk 0:00:03]}  Kf6 {[%clk 0:00:18]} 0-1


[Site "https://www.chess.com"]